bitfinex-derivatives/quotes_ETHF0:USTF0_20241027
["timestamp","ask_amount","ask_price","bid_price","bid_amount"]
[1730041968571,8.45196,2499.2,2499.1,0.05485428]
[1730041975871,4.45036,2499.2,2499.1,0.05485428]
[1730041980185,3.2078,2499.2,2499.1,0.45541428]
[1730041980383,4.45034,2499.2,2499.1,0.88331428]
[1730041980577,4.0498,2499.2,2499.1,0.88331428]
[1730041981078,0.842,2499.2,2499.1,0.88331428]
[1730041981281,0.40053,2499.3,2499.1,0.48275428]
[1730041981577,0.40053,2499.3,2499.2,0.40054]
[1730041981782,1.24253,2499.3,2499.2,0.45539428]
[1730041984083,0.842,2499.3,2499.2,0.45539428]
[1730041984284,1.24253,2499.3,2499.2,0.05485428]
[1730041985186,9.8352567,2499.3,2499.2,0.05485428]
[1730041985692,9.77306186,2499.3,2499.2,0.05485428]
[1730041985887,9.83526334,2499.3,2499.2,0.05485428]
[1730041989293,9.83526334,2499.3,2498.4,0.4085]
[1730041989294,0.40066,2498.5,2498.4,0.4085]
[1730041989615,1.24266,2498.5,2498.4,0.4085]
[1730041990687,1.24266,2498.5,2498.4,0.80917]
[1730041990995,1.24266,2498.5,2498.4,0.4085]
[1730041993995,0.842,2498.5,2498.2,0.4396]
[1730041994199,0.40077,2497.8,2497.7,0.40078]
[1730041994386,0.841,2497.8,2497.7,1.2975]
[1730041994595,0.841,2497.8,2497.7,1.69828]
[1730041995705,1.24177,2497.8,2497.7,1.69828]
[1730041996394,4.20957,2498.2,2497.7,5.3015]
[1730041996395,3.2078,2498.2,2497.7,5.3015]
[1730041996593,0.842,2497.9,2497.8,0.40077]
[1730041996898,1.24275,2497.9,2497.8,0.40077]
[1730041997290,0.40077,2497.8,2497.7,1.69828]
[1730041998904,0.40077,2497.8,2497.7,1.2975]
[1730041999506,0.40077,2497.8,2497.7,1.69828]
[1730041999691,0.40077,2497.8,2497.7,1.2975]
[1730042000596,0.40077,2497.8,2497.7,1.69828]
[1730042001606,0.40077,2497.8,2497.7,1.2975]
[1730042003695,0.40077,2497.8,2497.7,1.69828]
[1730042004623,0.40077,2497.8,2497.7,0.448]
[1730042004822,1.44264,2497.8,2497.4,1.25972]
[1730042005024,0.40082,2497.5,2497.4,1.25972]
[1730042006622,0.40082,2497.5,2497.4,1.25973]
[1730042009029,0.40082,2497.5,2497.4,0.4488]
[1730042009219,0.40082,2497.5,2497.4,0.84963]
[1730042010631,0.4096,2497.7,2497.4,0.4488]
[1730042010931,0.40081,2497.6,2497.5,0.4008]
[1730042014432,0.4407,2497.8,2497.4,0.4488]
[1730042014633,0.40079,2497.7,2497.6,0.40079]
[1730042015330,0.4407,2497.8,2497.4,0.4488]
[1730042015535,0.40077,2497.8,2497.7,0.40077]
[1730042015723,1.24277,2497.8,2497.7,0.40077]
[1730042016533,1.24277,2497.8,2497.7,0.84087]
[1730042022532,0.842,2497.8,2497.7,0.84087]
[1730042023031,1.24277,2497.8,2497.7,0.84087]
[1730042024835,1.24277,2497.8,2497.7,0.4401]
[1730042025936,0.40077,2497.8,2497.7,0.4401]
[1730042026238,1.24277,2497.8,2497.7,0.4401]
[1730042027039,0.40078,2497.7,2497.6,0.40079]
[1730042030345,0.842,2497.8,2497.5,0.4178]
[1730042030544,0.842,2497.8,2497.5,0.8186]
[1730042030545,0.4008,2497.6,2497.5,0.8186]
[1730042031242,0.4008,2497.6,2497.5,0.4178]
[1730042032542,0.8205,2497.6,2497.5,0.4178]
[1730042032734,0.40082,2497.5,2497.4,3.2078]
[1730042032934,0.85062,2497.5,2497.4,0.40083]
[1730042033735,0.85062,2497.5,2497.3,0.8662]
[1730042033736,0.40083,2497.4,2497.3,1.26704]
[1730042036345,0.40083,2497.4,2497.3,5.27104]
[1730042036649,0.40083,2497.5,2497.4,0.40081]
[1730042037139,0.40083,2497.5,2497.4,4.40481]
[1730042038148,0.40083,2497.5,2497.4,0.40081]
[1730042042446,1.24283,2497.5,2497.4,0.40081]
[1730042046851,1.69423,2497.5,2497.4,0.40081]
[1730042049952,1.69423,2497.5,2497.3,0.8662]
[1730042049953,1.2934,2497.5,2497.3,0.8662]
[1730042050253,0.40083,2497.4,2497.3,0.81574]
[1730042050755,0.40088,2497.1,2497.0,1.88378196]
[1730042050958,0.40088,2497.1,2497.0,2.32128196]
[1730042051149,0.40088,2497.1,2497.0,1.27628]
[1730042051349,0.40088,2497.1,2497.0,0.83838]
[1730042052259,0.40088,2497.1,2497.0,0.4375]
[1730042053256,0.40088,2497.1,2496.9,3.6273]
[1730042053461,2.5441,2497.0,2496.9,4.02821]
[1730042055055,2.1432,2497.0,2496.9,0.82041]
[1730042061680,0.40085,2497.3,2497.2,0.40086]
[1730042061978,0.4195,2497.3,2497.2,0.40086]
[1730042062178,2.08916,2497.3,2497.1,0.40087]
[1730042062375,2.08916,2497.3,2497.2,0.40086]
[1730042062573,1.24816,2497.3,2497.2,0.40086]
[1730042062775,2.08916,2497.3,2497.2,0.40086]
[1730042065780,0.40086,2497.2,2497.1,0.84657]
[1730042066078,0.40086,2497.2,2497.1,0.84658]
[1730042067177,0.40086,2497.2,2497.1,0.40088]
[1730042067677,2.08916,2497.3,2497.2,0.40086]
[1730042069777,0.40087,2497.2,2497.1,0.40087]
[1730042071977,0.40088,2497.1,2497.0,0.83608]
[1730042072983,0.40088,2497.2,2497.1,0.40087]
[1730042073183,1.6883,2497.3,2497.0,0.4352]
[1730042073383,0.40091,2497.0,2496.9,0.40091]
[1730042073784,0.40091,2496.9,2496.8,3.60872]
[1730042074084,1.71371,2496.9,2496.8,3.60872]
[1730042075979,1.27571,2496.9,2496.8,3.60872]
[1730042077285,1.27571,2496.9,2496.8,0.40092]
[1730042099313,0.40094,2496.7,2496.6,4.04284]
[1730042099500,1.24194,2496.7,2496.6,4.04284]
[1730042100909,1.24194,2496.7,2496.6,0.83504]
[1730042106613,1.24194,2496.7,2496.6,0.4341]
[1730042106914,1.24194,2496.7,2496.6,0.83506]
[1730042107808,1.24194,2496.7,2496.6,0.4341]
[1730042108308,1.24194,2496.7,2496.6,0.83506]
[1730042110519,0.40098,2496.5,2496.4,3.60878]
[1730042112809,0.40098,2496.5,2496.4,0.40098]
[1730042118326,0.40097,2496.6,2496.5,0.40096]
[1730042118825,0.841,2496.6,2496.5,0.40096]
[1730042119020,1.24196,2496.6,2496.5,0.40096]
[1730042119424,0.841,2496.6,2496.5,0.40096]
[1730042119624,1.24196,2496.6,2496.5,0.40096]
[1730042119936,0.841,2496.6,2496.4,1.00249]
[1730042120123,5.10018,2497.2,2496.5,5.00805]
[1730042120314,0.40091,2497.0,2496.9,0.4009]
[1730042120511,1.2419,2497.1,2497.0,0.4009]
[1730042121012,0.40091,2497.0,2496.9,0.4009]
[1730042122725,0.841,2497.1,2496.7,1.00237]
[1730042123020,1.24189,2497.1,2497.0,0.4009]
[1730042123919,1.24189,2497.1,2496.9,0.4009]
[1730042123920,0.40091,2497.0,2496.9,0.4009]
[1730042124120,1.24189,2497.1,2497.0,0.4009]
[1730042124519,1.3248,2497.2,2496.8,4.21012]
[1730042124724,0.841,2497.3,2496.9,1.00229]
[1730042125020,1.24185,2497.3,2497.2,0.40086]
[1730042126020,1.67945,2497.3,2497.2,0.40086]
[1730042126222,6.28554,2497.3,2496.9,0.40091]
[1730042126517,6.28554,2497.3,2496.8,4.25280196]
[1730042126518,0.40091,2496.9,2496.8,3.2078]
[1730042126924,0.40096,2496.6,2496.5,0.40097]
[1730042127919,0.83096,2496.6,2496.5,0.40097]
[1730042128224,1.26726,2496.6,2496.5,0.40097]
[1730042129419,0.8663,2496.6,2496.3,3.2078]
[1730042129726,0.8663,2496.6,2496.4,0.40098]
[1730042129727,0.40098,2496.5,2496.4,0.40098]
[1730042133128,0.8663,2496.6,2496.2,0.8419]
[1730042133322,0.401,2496.4,2496.3,0.81389]
[1730042134831,0.40098,2496.5,2496.4,0.40098]
[1730042138024,0.8663,2496.6,2496.3,0.4129]
[1730042138025,4.0741,2496.6,2496.3,0.4129]
[1730042138230,0.40098,2496.5,2496.3,0.8139]
[1730042138533,0.40098,2496.5,2496.4,0.40099]
[1730042138735,0.40099,2496.4,2496.3,0.8139]
[1730042141630,0.40099,2496.4,2496.3,0.4129]
[1730042143237,0.40099,2496.4,2496.3,0.81391]
[1730042143739,4.03877,2496.6,2496.5,0.40098]
[1730042144040,3.6378,2496.6,2496.5,0.40098]
[1730042144737,1.271,2496.6,2496.5,0.40098]
[1730042149049,1.67196,2496.6,2496.5,0.40098]
[1730042150254,1.271,2496.6,2496.5,0.40098]
[1730042150559,1.27,2496.6,2496.5,0.40098]
[1730042150758,3.2078,2497.1,2496.5,4.0056]
[1730042151053,1.2409,2497.0,2496.9,0.40091]
[1730042151253,0.40093,2496.9,2496.8,0.40092]
[1730042151451,0.40093,2496.8,2496.7,0.40093]
[1730042151643,1.23453,2496.8,2496.7,0.40093]
[1730042151849,0.8336,2496.8,2496.7,0.40093]
[1730042152346,2.07453,2496.8,2496.7,0.40093]
[1730042152547,1.6736,2496.8,2496.7,0.40093]
[1730042153163,2.07453,2496.8,2496.7,0.40093]
[1730042153358,1.6736,2496.8,2496.7,0.40093]
[1730042153755,2.07453,2496.8,2496.7,0.40093]
[1730042154760,1.6736,2496.8,2496.7,0.40093]
[1730042155260,2.07453,2496.8,2496.7,0.40093]
[1730042156751,1.2503,2496.8,2496.7,0.40093]
[1730042157063,0.84,2496.8,2496.7,0.40093]
[1730042157458,0.40092,2496.9,2496.8,0.40093]
[1730042157656,0.8806,2497.0,2496.7,0.40093]
[1730042157657,1.24093,2496.8,2496.7,0.40093]
[1730042157863,0.84,2496.8,2496.7,0.40093]
[1730042158561,1.24093,2496.8,2496.7,0.40093]
[1730042158858,0.84,2496.8,2496.7,0.40093]
[1730042164761,1.24093,2496.8,2496.7,0.40093]
[1730042165359,0.84,2496.8,2496.7,0.40093]
[1730042167356,1.24093,2496.8,2496.7,0.40093]
[1730042167562,0.84,2496.8,2496.7,0.40093]
[1730042168266,1.24093,2496.8,2496.7,0.40093]
[1730042170169,0.84,2496.8,2496.7,0.40093]
[1730042171055,0.40093,2496.9,2496.8,0.40093]
[1730042171255,0.40089,2497.1,2497.0,0.40088]
[1730042171465,1.24089,2497.1,2497.0,0.40088]
[1730042171865,1.24089,2497.1,2497.0,0.84498]
[1730042173065,0.8603,2497.2,2497.0,0.4441]
[1730042173367,0.84,2497.1,2497.0,0.845]
[1730042174764,0.84,2497.1,2497.0,5.2573]
[1730042175966,0.81255,2497.3,2497.2,0.40086]
[1730042176170,1.65255,2497.3,2497.2,0.40086]
[1730042177168,1.2517,2497.3,2497.2,0.40086]
[1730042177370,1.65255,2497.3,2497.2,0.40086]
[1730042177567,0.40088,2497.2,2497.1,0.40087]
[1730042177770,0.83088,2497.2,2497.1,0.40087]
[1730042181167,0.43,2497.2,2496.7,1.43694]
[1730042181369,0.40091,2497.0,2496.9,0.4009]
[1730042190073,0.83348,2497.1,2497.0,0.4009]
[1730042195894,0.4326,2497.1,2497.0,0.4009]
[1730042196175,0.83087,2497.2,2497.1,0.40088]
[1730042196176,0.43,2497.2,2497.1,0.40088]
[1730042196383,1.27,2497.2,2497.1,0.40088]
[1730042197896,0.43,2497.2,2497.1,0.40088]
[1730042198078,1.27,2497.2,2497.1,0.40088]
[1730042198678,2.10586,2497.2,2497.1,0.40088]
[1730042199074,0.4009,2497.1,2497.0,0.40089]
[1730042199483,2.10588,2497.2,2497.1,0.40088]
[1730042199883,6.11068,2497.2,2497.1,0.40088]
[1730042200392,1.705,2497.2,2497.1,0.40088]
[1730042200983,1.705,2497.2,2497.1,0.81428]
[1730042201182,2.10586,2497.2,2497.1,0.40088]
[1730042202584,1.705,2497.2,2497.1,0.40088]
[1730042202784,2.10586,2497.2,2497.1,0.40088]
[1730042207687,0.865,2497.2,2497.1,0.40088]
[1730042207991,3.2078,2497.4,2497.1,0.40088]
[1730042207992,4.20977,2497.8,2497.3,0.40085]
[1730042208193,3.60863,2497.5,2497.4,0.40083]
[1730042208495,0.40083,2497.5,2497.4,0.40083]
[1730042209097,0.40084,2497.4,2497.3,0.40084]
[1730042209395,0.4183,2497.6,2497.2,1.3067]
[1730042209588,0.40082,2497.5,2497.4,0.40082]
[1730042211094,0.40085,2497.4,2497.3,0.40084]
[1730042213899,1.23985,2497.4,2497.3,0.40084]
[1730042217994,1.23983,2497.4,2497.3,0.40084]
[1730042218795,0.40085,2497.3,2497.2,1.70755]
[1730042219401,0.839,2497.4,2497.2,1.3067]
[1730042219594,0.83905,2497.3,2497.2,1.27626]
[1730042219903,1.25835,2497.3,2497.2,1.27626]
[1730042222099,0.8575,2497.3,2497.2,1.27626]
[1730042222403,4.2097,2497.9,2497.3,0.40085]
[1730042222608,0.4008,2497.7,2497.6,0.40079]
[1730042222797,4.41765934,2497.7,2497.4,0.4272]
[1730042222995,0.4008,2497.6,2497.5,0.822]
[1730042224299,0.4008,2497.6,2497.5,0.4212]
[1730042224496,0.4008,2497.6,2497.5,0.82202]
[1730042227808,1.2398,2497.6,2497.5,0.82202]
[1730042228900,1.2398,2497.6,2497.5,0.4212]
[1730042229299,1.6561,2497.6,2497.5,0.4212]
[1730042229499,1.6561,2497.6,2497.5,0.82202]
[1730042234612,0.8171,2497.6,2497.5,0.82202]
[1730042234905,0.839,2497.6,2497.5,0.82202]
[1730042237803,1.2398,2497.6,2497.5,0.82202]
[1730042238810,0.839,2497.6,2497.5,0.82202]
[1730042239114,1.2398,2497.6,2497.5,0.82202]
[1730042240706,0.839,2497.6,2497.2,0.4453]
[1730042240917,0.40084,2497.4,2497.3,0.40084]
[1730042241210,0.40085,2497.3,2497.1,0.4074]
[1730042241427,0.40086,2497.2,2497.1,0.4074]
[1730042242414,0.40086,2497.2,2497.1,0.80828]
[1730042243710,0.40086,2497.2,2497.1,0.4074]
[1730042243905,0.4009,2497.0,2496.9,0.80999]
[1730042244209,1.2399,2497.0,2496.9,1.23709]
[1730042246904,1.2399,2497.0,2496.9,0.4271]
[1730042247102,0.40093,2496.8,2496.7,3.60873]
[1730042247310,0.40093,2496.8,2496.7,4.02224]
[1730042248208,0.839,2497.0,2496.7,3.6213]
[1730042248614,0.40093,2496.8,2496.7,4.02223]
[1730042249210,0.40093,2496.8,2496.7,0.81443]
[1730042249715,0.839,2497.0,2496.7,0.4135]
[1730042249913,0.839,2497.0,2496.7,0.81444]
[1730042249914,0.40091,2496.9,2496.7,0.81444]
[1730042250124,0.839,2497.0,2496.7,0.4135]
[1730042250421,0.83023,2496.8,2496.7,0.81444]
[1730042251009,0.83023,2496.8,2496.7,0.4135]
[1730042251412,0.83023,2496.8,2496.7,0.81444]
[1730042252117,0.83023,2496.8,2496.7,0.4135]
[1730042254619,0.83023,2496.8,2496.7,0.81444]
[1730042255211,0.83023,2496.8,2496.7,0.4135]
[1730042255412,0.4293,2496.8,2496.7,0.81444]
[1730042255721,1.23991,2497.0,2496.9,0.40091]
[1730042255918,1.2759,2497.0,2496.7,0.4135]
[1730042256419,1.67681,2497.0,2496.9,0.40091]
[1730042256820,1.67681,2497.0,2496.8,0.40092]
[1730042256821,0.40092,2496.9,2496.8,0.40092]
[1730042257215,0.8378,2497.0,2496.9,0.40091]
[1730042257415,0.40091,2496.9,2496.8,0.40092]
[1730042257716,0.839,2496.9,2496.8,0.40092]
[1730042257914,0.839,2496.9,2496.8,4.40572]
[1730042258115,0.839,2496.9,2496.8,0.40092]
[1730042258719,1.23991,2496.9,2496.8,0.40092]
[1730042262927,0.40093,2496.8,2496.7,0.4135]
[1730042263123,1.2632,2496.8,2496.6,0.83315]
[1730042263429,0.40094,2496.7,2496.6,1.24425]
[1730042265427,0.40096,2496.6,2496.5,3.2078]
[1730042265622,0.40096,2496.6,2496.5,3.60878]
[1730042266022,0.40096,2496.6,2496.5,3.2078]
[1730042267430,0.40098,2496.5,2496.4,0.40098]
[1730042268330,0.40099,2496.4,2496.3,1.22579]
[1730042268531,1.23999,2496.4,2496.3,1.22579]
[1730042270828,0.40099,2496.5,2496.3,4.8304]
[1730042271135,1.23999,2496.5,2496.4,0.83589]
[1730042276631,0.839,2496.5,2496.4,0.83589]
[1730042281836,0.40095,2496.7,2496.6,0.40096]
[1730042282037,1.23995,2496.7,2496.6,0.40096]
[1730042285340,0.839,2496.7,2496.6,0.40096]
[1730042285542,1.66414,2496.8,2496.4,1.43739]
[1730042285736,1.2632,2496.8,2496.5,1.00245]
[1730042285940,0.8394,2496.8,2496.7,0.40094]
[1730042286137,1.6784,2496.8,2496.7,0.40094]
[1730042286542,0.8394,2496.8,2496.7,0.84534]
[1730042286740,1.6784,2496.8,2496.7,0.84534]
[1730042288633,2.07933,2496.8,2496.7,0.84534]
[1730042289245,1.6784,2496.8,2496.7,0.84534]
[1730042289445,2.07933,2496.8,2496.7,0.84534]
[1730042289637,1.6784,2496.8,2496.7,0.84534]
[1730042289837,0.839,2496.8,2496.7,4.85094]
[1730042290347,0.839,2496.8,2496.7,8.05874]
[1730042291247,0.839,2496.8,2496.7,4.05314]
[1730042291547,1.23993,2496.8,2496.7,4.05314]
[1730042291746,1.23993,2496.8,2496.7,0.84534]
[1730042292247,0.839,2496.8,2496.7,0.84534]
[1730042292747,1.23993,2496.8,2496.7,0.84534]
[1730042293135,0.839,2496.8,2496.7,0.84534]
[1730042293941,0.42,2497.1,2496.7,4.85094]
[1730042294141,0.839,2497.0,2496.9,0.40091]
[1730042294336,0.839,2497.1,2496.8,1.42763]
[1730042294538,4.63947,2497.5,2496.9,4.4198]
[1730042294848,0.40087,2497.3,2497.2,0.40085]
[1730042295644,0.40087,2497.3,2497.2,0.81585]
[1730042296740,0.80857,2497.3,2497.2,0.81585]
[1730042297249,0.80857,2497.3,2497.2,0.81586]
[1730042297556,1.23157,2497.3,2497.2,0.81586]
[1730042300145,1.23157,2497.3,2497.2,0.40086]
[1730042300346,1.23157,2497.3,2497.1,0.4413]
[1730042300347,0.8307,2497.3,2496.9,3.2078]
[1730042300547,0.4009,2497.1,2497.0,0.40088]
[1730042304656,0.40091,2497.0,2496.9,0.40089]
[1730042305649,1.2674,2497.2,2496.8,0.4414]
[1730042305848,0.40089,2497.1,2497.0,0.40088]
[1730042307352,0.4009,2497.0,2496.9,0.4009]
[1730042308256,0.40089,2497.1,2497.0,0.40088]
[1730042311757,0.40091,2497.0,2496.9,0.40089]
[1730042313159,1.2674,2497.2,2496.8,0.4332]
[1730042313369,0.4009,2497.1,2497.0,0.40088]
[1730042314460,1.2389,2497.1,2497.0,0.40088]
[1730042317072,0.838,2497.1,2497.0,0.40088]
[1730042317270,1.23888,2497.1,2497.0,0.40088]
[1730042317662,0.838,2497.1,2497.0,0.40088]
[1730042317864,0.40088,2497.2,2497.1,0.40086]
[1730042318068,0.838,2497.2,2496.9,4.21007]
[1730042318263,0.838,2497.2,2497.0,0.4009]
[1730042318470,0.838,2497.2,2497.1,0.81818]
[1730042318669,2.50296,2497.3,2497.2,0.40086]
[1730042323277,0.838,2497.3,2497.2,0.40086]
[1730042323479,1.23885,2497.3,2497.2,4.82876]
[1730042323677,1.23885,2497.3,2497.2,0.82396]
[1730042323873,1.23885,2497.3,2497.2,4.82876]
[1730042324475,1.23885,2497.3,2497.2,5.25486]
[1730042328075,0.838,2497.3,2497.2,5.25486]
[1730042329581,0.40084,2497.4,2497.2,4.854]
[1730042329781,0.40084,2497.4,2497.3,0.40085]
[1730042329782,1.23884,2497.4,2497.3,0.40085]
[1730042337989,0.8309,2497.5,2497.2,0.4231]
[1730042338187,0.837,2497.6,2497.4,0.40083]
[1730042338379,0.4299,2497.7,2497.6,0.4008]
[1730042338580,2.07198,2497.8,2497.7,0.40078]
[1730042339085,1.6712,2497.8,2497.7,0.40078]
[1730042339679,0.8342,2497.8,2497.7,0.40078]
[1730042339887,2.07197,2497.8,2497.7,0.40078]
[1730042340281,1.6712,2497.8,2497.7,0.40078]
[1730042340477,2.07197,2497.8,2497.7,0.40078]
[1730042348087,1.6712,2497.8,2497.7,0.40078]
[1730042348489,0.8342,2497.8,2497.7,0.40078]
[1730042348688,0.40073,2498.1,2498.0,0.40071]
[1730042348990,1.70821,2498.2,2498.1,0.40072]
[1730042349192,2.54521,2498.2,2498.1,0.40072]
[1730042349992,2.1445,2498.2,2498.1,0.40072]
[1730042350491,2.5452,2498.2,2498.1,0.40072]
[1730042350896,2.1445,2498.2,2498.1,0.40072]
[1730042351492,2.5452,2498.2,2498.1,0.40072]
[1730042353897,2.1445,2498.2,2498.1,0.40072]
[1730042354116,2.5452,2498.2,2498.1,0.40072]
[1730042354700,2.1445,2498.2,2498.1,0.40072]
[1730042355008,2.5452,2498.2,2498.1,0.40072]
[1730042355597,2.1445,2498.2,2498.1,0.40072]
[1730042356303,2.5452,2498.2,2498.1,0.40072]
[1730042356701,2.1445,2498.2,2498.1,0.40072]
[1730042357203,2.5452,2498.2,2498.1,0.40072]
[1730042367507,0.40074,2498.1,2498.0,0.40072]
[1730042367715,2.1445,2498.2,2497.7,0.4324]
[1730042367716,3.14627,2498.2,2497.7,0.4324]
[1730042368014,0.40077,2497.9,2497.8,0.40076]
[1730042368710,1.00183,2498.1,2497.4,1.44348]
[1730042369011,1.69789,2497.8,2497.7,0.40077]
[1730042370712,0.40082,2497.6,2497.5,0.40079]
[1730042372005,0.837,2497.7,2497.3,0.8738]
[1730042372213,0.40086,2497.3,2497.2,0.40084]
[1730042372406,3.2078,2497.6,2497.1,0.40087]
[1730042372407,0.40088,2497.2,2497.1,0.40087]
[1730042372611,2.08978,2497.2,2497.1,0.40087]
[1730042373305,2.08978,2497.2,2497.0,0.85218]
[1730042373306,0.40088,2497.1,2497.0,0.85218]
[1730042373504,0.40088,2497.1,2497.0,0.8522]
[1730042373908,3.60868,2497.1,2497.0,0.8522]
[1730042374607,0.40088,2497.1,2497.0,0.8522]
[1730042375116,2.08978,2497.2,2497.1,0.40088]
[1730042381009,1.6889,2497.2,2497.1,0.40088]
[1730042381320,0.4371,2497.3,2497.0,0.4513]
[1730042381612,1.2741,2497.3,2497.2,0.40086]
[1730042381804,0.8441,2497.5,2497.1,0.4187]
[1730042382011,0.8441,2497.5,2497.4,0.40083]
[1730042382318,2.08192,2497.5,2497.4,0.40083]
[1730042382715,1.24492,2497.5,2497.4,0.40083]
[1730042382911,2.08192,2497.5,2497.4,0.40083]
[1730042394616,0.40084,2497.4,2497.3,0.40083]
[1730042394815,0.84414,2497.4,2497.3,0.40083]
[1730042401422,0.4433,2497.4,2497.3,0.40083]
[1730042401625,2.08192,2497.5,2497.4,0.40083]
[1730042403420,1.65252,2497.5,2497.4,0.40083]
[1730042403721,0.82371,2497.6,2497.5,0.40082]
[1730042404026,1.66071,2497.6,2497.5,0.40082]
[1730042407327,3.2078,2497.7,2497.3,1.86193]
[1730042407328,3.2078,2497.7,2497.6,0.4008]
[1730042408227,3.2078,2497.7,2497.6,0.8497]
[1730042408926,3.60858,2497.7,2497.6,0.8497]
[1730042409727,3.60858,2497.7,2497.6,0.4008]
[1730042410924,3.2078,2497.7,2497.4,0.4489]
[1730042411131,0.83842,2497.6,2497.5,0.4008]
[1730042411430,0.4376,2497.6,2497.4,0.4489]
[1730042411628,0.82832,2497.5,2497.4,0.84973]
[1730042412339,0.4275,2497.5,2497.2,0.4342]
[1730042412530,0.40086,2497.3,2497.2,0.40085]
[1730042415730,1.23786,2497.3,2497.2,0.40085]
[1730042417632,0.40088,2497.2,2497.1,0.40086]
[1730042418732,0.837,2497.3,2497.0,1.2858]
[1730042418935,0.40088,2497.2,2497.1,0.40086]
[1730042425638,0.40088,2497.1,2497.0,0.40089]
[1730042425832,1.68478,2497.1,2497.0,0.40089]
[1730042427537,0.40091,2497.0,2496.9,0.4009]
[1730042429436,0.40091,2496.9,2496.8,3.60871]
[1730042430038,5.49391,2497.1,2496.6,0.43]
[1730042430241,0.82684,2496.8,2496.7,0.40093]
[1730042430540,0.4259,2496.8,2496.6,0.43]
[1730042430740,1.25644,2496.7,2496.6,0.83095]
[1730042431239,1.25644,2496.7,2496.6,0.40095]
[1730042474175,2.09244,2496.7,2496.6,0.40095]
[1730042476278,2.09244,2496.7,2496.6,1.44958467]
[1730042476571,0.4259,2496.8,2496.6,0.40095]
[1730042476778,0.4463,2497.2,2496.7,4.0056]
[1730042477072,0.84717,2497.2,2497.1,0.40088]
[1730042477378,1.68317,2497.2,2497.1,0.40088]
[1730042479673,5.68797,2497.2,2497.1,0.40088]
[1730042479874,5.2871,2497.2,2496.8,1.91553467]
[1730042480182,5.2871,2497.2,2496.7,0.40093]
[1730042480183,0.40094,2496.8,2496.7,0.40093]
[1730042480479,0.40094,2496.7,2496.6,0.82215]
[1730042480675,2.08724,2496.7,2496.6,0.82215]
[1730042483482,1.6863,2496.7,2496.6,0.82215]
[1730042483683,2.08724,2496.7,2496.6,0.82215]
[1730042486378,1.23694,2496.7,2496.6,0.82215]
[1730042486980,1.23694,2496.7,2496.6,1.70395]
[1730042488589,1.23694,2496.7,2496.6,0.40095]
[1730042495991,1.23694,2496.7,2496.6,0.82675]
[1730042497090,0.836,2496.7,2496.6,0.82675]
[1730042497291,1.23694,2496.7,2496.6,0.82675]
[1730042497686,1.23694,2496.7,2496.6,1.23805]
[1730042497885,0.836,2496.7,2496.6,1.23805]
[1730042498185,0.83834,2496.8,2496.6,1.2596]
[1730042498381,0.836,2496.7,2496.6,1.66056]
[1730042499386,1.23694,2496.7,2496.6,1.66056]
[1730042503597,0.836,2496.7,2496.6,1.66056]
[1730042503796,1.23694,2496.7,2496.6,1.66056]
[1730042505101,0.836,2496.7,2496.6,1.66056]
[1730042505295,1.23694,2496.7,2496.6,1.66056]
[1730042509097,0.836,2496.7,2496.6,1.66056]
[1730042509298,1.23694,2496.7,2496.6,1.66056]
[1730042513203,0.836,2496.7,2496.6,1.66056]
[1730042513597,0.40094,2496.8,2496.6,1.2596]
[1730042513904,0.835,2496.7,2496.6,1.66056]
[1730042514305,1.23594,2496.7,2496.6,1.66056]
[1730042515204,0.835,2496.7,2496.6,1.66056]
[1730042515406,1.23594,2496.7,2496.6,1.66056]
[1730042515595,0.835,2496.7,2496.6,1.66056]
[1730042516506,1.23594,2496.7,2496.6,1.66056]
[1730042518413,0.835,2496.7,2496.6,1.66056]
[1730042518803,0.4295,2497.0,2496.6,1.66056]
[1730042519108,0.40091,2497.0,2496.9,0.40091]
[1730042519311,1.23591,2497.0,2496.9,0.40091]
[1730042519508,3.60869,2497.1,2497.0,0.4009]
[1730042519709,4.44369,2497.1,2497.0,0.4009]
[1730042519905,1.23589,2497.1,2497.0,0.4009]
[1730042523114,0.835,2497.1,2497.0,0.4009]
[1730042523314,0.835,2497.1,2497.0,0.847]
[1730042523516,0.835,2497.1,2497.0,0.8661]
[1730042523711,0.835,2497.1,2497.0,1.267]
[1730042524315,1.23588,2497.1,2497.0,1.267]
[1730042525507,0.835,2497.1,2497.0,1.267]
[1730042525812,1.23588,2497.1,2497.0,1.267]
[1730042527810,0.835,2497.1,2497.0,1.267]
[1730042528418,1.23588,2497.1,2497.0,1.267]
[1730042529119,0.835,2497.1,2497.0,1.267]
[1730042535322,1.23588,2497.1,2497.0,1.267]
[1730042535520,0.835,2497.1,2497.0,1.267]
[1730042535826,1.23588,2497.1,2497.0,0.847]
[1730042536722,0.835,2497.1,2497.0,0.847]
[1730042538319,1.23588,2497.1,2497.0,0.847]
[1730042538719,0.835,2497.1,2497.0,0.847]
[1730042539827,1.23588,2497.1,2497.0,0.847]
[1730042540133,1.23588,2497.1,2497.0,0.4009]
[1730042540630,0.835,2497.1,2497.0,0.4009]
[1730042543029,1.23588,2497.1,2497.0,0.4009]
[1730042543225,0.835,2497.1,2497.0,0.4009]